Workbook

Sheet 例題27 気相PFR
A1: 微分方程式数 | B1: 1 | F1: 定数
A2: xA= | B2: V= | F2: F= | G2: 2.904 | H2: m3/s
A3: 0.8 | B3: 2.287826537 | F3: cA0= | G3: 66.46 | H3: mol/m3
B4: V'= | F4: k1= | G4: 3.07 | H4: /s
A5: 微分方程式→ | B5: =G2*G3/G7 -> 8.513355049 | F5: e= | G5: 1
F6: cA= | G6: =G3*(1-A3)/(1+G5*A3) -> 7.384444444
A7: 積分区間xA=[a, | B7: 0 | F7: -rA= | G7: =G4*G6 -> 22.67024444
A8: b] | B8: 0.8
A9: 積分刻み幅ΔV | B9: 0.025
A10: 計算結果
A11: xA | B11: V PFR[m3]
A12: =B7 -> 0 | B12: 0 | E12: ←初期値
A13: 0.025 | B13: 0.02424945579
A14: 0.05 | B14: 0.04974314491
A15: 0.075 | B15: 0.07654743798
A16: 0.1 | B16: 0.104734162
A17: 0.125 | B17: 0.1343812155
A18: 0.15 | B18: 0.1655732726
A19: 0.175 | B19: 0.1984025922
A20: 0.2 | B20: 0.2329699521
A21: 0.225 | B21: 0.269385731
A22: 0.25 | B22: 0.3077711684
A23: 0.275 | B23: 0.3482598376
A24: 0.3 | B24: 0.3909993776
A25: 0.325 | B25: 0.4361535406
A26: 0.35 | B26: 0.4839046249
A27: 0.375 | B27: 0.534456386
A28: 0.4 | B28: 0.5880375422
A29: 0.425 | B29: 0.6449060267
A30: 0.45 | B30: 0.7053541848
A31: 0.475 | B31: 0.769715182
A32: 0.5 | B32: 0.8383709757
A33: 0.525 | B33: 0.9117623344
A34: 0.55 | B34: 0.9904015668
A35: 0.575 | B35: 1.074888895
A36: 0.6 | B36: 1.165933795
A37: 0.625 | B37: 1.264383236
A38: 0.65 | B38: 1.371259677
A39: 0.675 | B39: 1.487813166
A40: 0.7 | B40: 1.61559434
A41: 0.725 | B41: 1.756559265
A42: 0.75 | B42: 1.91322438
A43: 0.775 | B43: 2.088903371
A44: 0.8 | B44: 2.288084143

Sheet Fogler_5_3
A1: 解析解
A2: T | B2: 1100 | C2: K
A3: p | B3: =6*101300 -> 607800 | C3: Pa
A4: R | B4: 8.314
A5: CA0(y=1) | B5: =B3/B4/B2 -> 66.45964091 | C5: mol/m3
A6: FA0 | B6: 193 | C6: mol/s
A7: e | B7: 1
A8: k1 | B8: 3.07 | C8: /s
A9: xA | B9: 0.8 | D9: 0.8 | E9: 0.7 | F9: 0.6 | G9: 0.5 | H9: 0.4 | I9: 0.3 | J9: 0.2 | K9: 0.1 | L9: 0
A10: V | B10: =($B$6/$B$8/$B$5)*((1+$B$7)*LN(1/(1-B9))-$B$7*B9) -> 2.28809745 | C10: m3 | D10: =($B$6/$B$8/$B$5)*((1+$B$7)*LN(1/(1-D9))-$B$7*D9) -> 2.28809745 | E10: =($B$6/$B$8/$B$5)*((1+$B$7)*LN(1/(1-E9))-$B$7*E9) -> 1.615604221 | F10: 1.165941003 | G10: 0.8383761775 | H10: 0.5880411966 | I10: 0.3910018095 | J10: 0.2329714017 | K10: 0.1047348139 | L10: 0
A12: F | B12: =B6/B5 -> 2.904018098 | C12: m3/s
A13: F cA0 | B13: =B12*B5 -> 193 | C13: mol/s
A15: COCO<COCO_27_RxnEH.fsd><fogex_5_3> | F15: PFR ReactorタブのSlices for profiles
A16: L | F16: 0.25 | G16: 0.5 | H16: 0.75 | I16: 1 | J16: 1.25 | K16: 1.5 | L16: 1.75 | M16: 2 | N16: 2.28
A17: D | F17: 1.1287 | G17: 1.1287 | H17: 1.1287 | I17: 1.1287 | J17: 1.1287 | K17: 1.1287 | L17: 1.1287 | M17: 1.1287 | N17: 1.1287
A18: V | B18: m3 | C18: 2.28 | E18: 0 | F18: =(3.14/4)*F17^2*F16 -> 0.2500153742 | G18: =(3.14/4)*G17^2*G16 -> 0.5000307483 | H18: 0.7500461225 | I18: 1.000061497 | J18: 1.250076871 | K18: 1.500092245 | L18: 1.750107619 | M18: 2.000122993 | N18: 2.280140212
A19: FA0 | B19: mol/s | C19: 193 | F19: 193 | G19: 193 | H19: 193 | I19: 193 | J19: 193 | K19: 193 | L19: 193 | M19: 193 | N19: 193
A20: Faout | B20: mol/s | C20: 38.81 | F20: 152.13 | G20: 123.9 | H20: 102.85 | I20: 86.32 | J20: 73.09 | K20: 62.28 | L20: 53.32 | M20: 45.83 | N20: 38.82
A21: xA | C21: =1-C20/C19 -> 0.7989119171 | E21: 0 | F21: =1-F20/F19 -> 0.211761658 | G21: =1-G20/G19 -> 0.3580310881 | H21: 0.4670984456 | I21: 0.552746114 | J21: 0.6212953368 | K21: 0.6773056995 | L21: 0.7237305699 | M21: 0.7625388601 | N21: 0.7988601036
A23: Superficial velocity profile
A24: D | B24: m | C24: 1.1287
A25: A | B25: m2 | C25: =(3.14/4)*C24^2 -> 1.000061497
C26: 0 | D26: 20 | E26: 40 | F26: 60 | G26: 80 | H26: 100
A27: V=L | B27: m | C27: 0 | D27: =2.28*D26/100 -> 0.456 | E27: =2.28*E26/100 -> 0.912 | F27: 1.368 | G27: 1.824 | H27: 2.28
B28: m/h | C28: 10462 | D28: 13970 | E28: 15952 | F28: 17251 | G28: 18159 | H28: 18817
B29: m/s | C29: =C28/3600 -> 2.906111111 | D29: =D28/3600 -> 3.880555556 | E29: 4.431111111 | F29: 4.791944444 | G29: 5.044166667 | H29: 5.226944444

Sheet Stream report
B2: Stream | C2: Feed | D2: Products | F2: PFR
B3: Pressure / [atm] | C3: 6 | D3: 6 | F3: Parameter | G3: Value
B4: Temperature / [K] | C4: 1100 | D4: 1100 | F4: Ethane conversion | G4: 0.800049
B5: Flow rate / [mol / s] | C5: 193 | D5: 347.409
B6: Flow Ethane / [mol / s] | C6: 193 | D6: 38.5906
B7: Flow Ethylene / [mol / s] | C7: 0 | D7: 154.409
B8: Flow Hydrogen / [mol / s] | C8: 0 | D8: 154.409
